[Event "Late-Titled-Tuesday-Blitz-January-30-2024"]
[Site "Chess.com"]
[Date "2024.01.30"]
[Round "10"]
[White "HansOnTwitch"]
[Black "SantoBlue"]
[Result "1-0"]
[WhiteElo "3230"]
[BlackElo "3000"]
[TimeControl "180+1"]
[EndTime "15:54:19 PST"]
[Termination "HansOnTwitch won by resignation"]

1. e4 {[%clk 0:03:00.9]} 1... d6 {[%clk 0:03:00.9]} 2. d4 {[%clk 0:02:56]} 2...
Nf6 {[%clk 0:03:01.3]} 3. Nc3 {[%clk 0:02:55.9]} 3... e5 {[%clk 0:03:01.9]} 4.
Nf3 {[%clk 0:02:55.7]} 4... Nbd7 {[%clk 0:03:02.2]} 5. Bc4 {[%clk 0:02:45.7]}
5... Be7 {[%clk 0:03:02.3]} 6. O-O {[%clk 0:02:42.5]} 6... O-O {[%clk
0:02:58.4]} 7. Re1 {[%clk 0:02:42.1]} 7... c6 {[%clk 0:02:53.4]} 8. a4 {[%clk
0:02:41.1]} 8... h6 {[%clk 0:02:53.6]} 9. h3 {[%clk 0:02:41.1]} 9... Re8 {[%clk
0:02:53.1]} 10. Be3 {[%clk 0:02:40.4]} 10... exd4 {[%clk 0:02:52.7]} 11. Bxd4
{[%clk 0:02:39.8]} 11... Nf8 {[%clk 0:02:50.8]} 12. a5 {[%clk 0:02:34.6]} 12...
Be6 {[%clk 0:02:49.4]} 13. Qd3 {[%clk 0:02:29]} 13... Bxc4 {[%clk 0:02:39.4]}
14. Qxc4 {[%clk 0:02:29]} 14... Ne6 {[%clk 0:02:40.1]} 15. Be3 {[%clk
0:02:26.6]} 15... d5 {[%clk 0:02:40.5]} 16. exd5 {[%clk 0:02:26.1]} 16... cxd5
{[%clk 0:02:41.3]} 17. Qa4 {[%clk 0:02:23.4]} 17... Rc8 {[%clk 0:02:08.3]} 18.
Bxa7 {[%clk 0:02:17.5]} 18... Rc4 {[%clk 0:02:07.4]} 19. Qb5 {[%clk 0:02:14]}
19... Rb4 {[%clk 0:02:05.3]} 20. Qd3 {[%clk 0:02:09.4]} 20... Rxb2 {[%clk
0:02:02.3]} 21. Bb6 {[%clk 0:02:05.3]} 21... Qc8 {[%clk 0:01:56.3]} 22. Nxd5
{[%clk 0:01:48.8]} 22... Nxd5 {[%clk 0:01:50.8]} 23. Qxd5 {[%clk 0:01:49.7]}
23... Rxc2 {[%clk 0:01:43.2]} 24. Rad1 {[%clk 0:01:48.9]} 24... Bc5 {[%clk
0:01:38.6]} 25. Rd2 {[%clk 0:01:41.8]} 25... Bxb6 {[%clk 0:01:32.6]} 26. Rxc2
{[%clk 0:01:38.7]} 26... Qxc2 {[%clk 0:01:32.4]} 27. axb6 {[%clk 0:01:38.8]}
27... Qc8 {[%clk 0:01:17.9]} 28. Ne5 {[%clk 0:01:35.7]} 28... Nd8 {[%clk
0:00:48.7]} 29. Rd1 {[%clk 0:01:32.3]} 29... Qf5 {[%clk 0:00:42.7]} 30. g4
{[%clk 0:01:26.5]} 30... Qf4 {[%clk 0:00:34.9]} 31. Re1 {[%clk 0:01:09.4]} 31...
Nc6 {[%clk 0:00:31]} 32. Qf3 {[%clk 0:00:36.9]} 32... Qxf3 {[%clk 0:00:17.2]}
33. Nxf3 {[%clk 0:00:37.8]} 33... Rxe1+ {[%clk 0:00:16.9]} 34. Nxe1 {[%clk
0:00:38.7]} 34... Kf8 {[%clk 0:00:16.5]} 35. Nd3 {[%clk 0:00:38.4]} 35... Ke7
{[%clk 0:00:16.9]} 36. f4 {[%clk 0:00:35.1]} 36... Kd6 {[%clk 0:00:16.6]} 37.
Kf2 {[%clk 0:00:34.8]} 37... Nb4 {[%clk 0:00:16.1]} 38. Nxb4 {[%clk 0:00:33.2]}
1-0

[Event "Late-Titled-Tuesday-Blitz-January-30-2024"]
[Site "Chess.com"]
[Date "2024.01.30"]
[Round "10"]
[White "GMRafpig"]
[Black "Rawnsdale"]
[Result "1-0"]
[WhiteElo "2724"]
[BlackElo "2529"]
[TimeControl "180+1"]
[EndTime "15:54:20 PST"]
[Termination "GMRafpig won on time"]

1. e4 {[%clk 0:03:00.9]} 1... c6 {[%clk 0:02:54.9]} 2. d4 {[%clk 0:02:59.6]}
2... d5 {[%clk 0:02:50.4]} 3. e5 {[%clk 0:02:59.7]} 3... c5 {[%clk 0:02:50.4]}
4. dxc5 {[%clk 0:02:58.6]} 4... e6 {[%clk 0:02:50.5]} 5. a3 {[%clk 0:02:58.2]}
5... Bxc5 {[%clk 0:02:46.5]} 6. Bd3 {[%clk 0:02:57]} 6... Nc6 {[%clk 0:02:45]}
7. Nf3 {[%clk 0:02:56.7]} 7... Nge7 {[%clk 0:02:43]} 8. b4 {[%clk 0:02:55.9]}
8... Bb6 {[%clk 0:02:43.1]} 9. Bb2 {[%clk 0:02:52]} 9... Ng6 {[%clk 0:02:42.3]}
10. O-O {[%clk 0:02:49]} 10... O-O {[%clk 0:02:38.4]} 11. Nbd2 {[%clk
0:02:35.6]} 11... Nf4 {[%clk 0:02:31]} 12. Nb3 {[%clk 0:02:30.1]} 12... Bd7
{[%clk 0:02:27.7]} 13. c4 {[%clk 0:02:20.3]} 13... Nxd3 {[%clk 0:02:22.9]} 14.
Qxd3 {[%clk 0:02:19.9]} 14... dxc4 {[%clk 0:02:23]} 15. Qxc4 {[%clk 0:02:19.7]}
15... Rc8 {[%clk 0:02:23.2]} 16. Qg4 {[%clk 0:02:15]} 16... Qe7 {[%clk
0:02:16.4]} 17. Ng5 {[%clk 0:02:05.7]} 17... h6 {[%clk 0:01:57.5]} 18. Ne4
{[%clk 0:02:04.2]} 18... Kh8 {[%clk 0:01:36.4]} 19. Rad1 {[%clk 0:01:58.4]}
19... Bc7 {[%clk 0:01:22.8]} 20. Nd6 {[%clk 0:01:55.3]} 20... Rb8 {[%clk
0:01:21.5]} 21. Nc5 {[%clk 0:01:52.4]} 21... Bc8 {[%clk 0:01:11.3]} 22. Rfe1
{[%clk 0:01:34]} 22... b6 {[%clk 0:00:46.5]} 23. Nce4 {[%clk 0:01:33.6]} 23...
Bb7 {[%clk 0:00:41.5]} 24. Rd3 {[%clk 0:01:27.8]} 24... Nxe5 {[%clk 0:00:24.5]}
25. Bxe5 {[%clk 0:01:20.7]} 25... f5 {[%clk 0:00:24.6]} 26. Qg6 {[%clk
0:01:08.5]} 26... Bxe4 {[%clk 0:00:08.1]} 27. Rg3 {[%clk 0:00:59.7]} 27... Rf6
{[%clk 0:00:03.8]} 28. Bxf6 {[%clk 0:00:52.4]} 28... Qxf6 {[%clk 0:00:03]} 29.
Qxf6 {[%clk 0:00:52]} 29... gxf6 {[%clk 0:00:03.3]} 30. Nxe4 {[%clk 0:00:51.2]}
30... fxe4 {[%clk 0:00:03.2]} 31. Rg6 {[%clk 0:00:51.6]} 31... Be5 {[%clk
0:00:02.7]} 32. Rxe4 {[%clk 0:00:50.7]} 32... Kh7 {[%clk 0:00:02.1]} 33. Reg4
{[%clk 0:00:45.3]} 33... Rc8 {[%clk 0:00:01]} 34. g3 {[%clk 0:00:36.4]} 1-0

[Event "Late-Titled-Tuesday-Blitz-January-30-2024"]
[Site "Chess.com"]
[Date "2024.01.30"]
[Round "10"]
[White "toninhojit"]
[Black "Walter_White_Poland"]
[Result "1-0"]
[WhiteElo "2511"]
[BlackElo "2330"]
[TimeControl "180+1"]
[EndTime "15:54:20 PST"]
[Termination "toninhojit won by resignation"]

1. d4 {[%clk 0:03:00.9]} 1... Nf6 {[%clk 0:02:55.7]} 2. c4 {[%clk 0:03:01.2]}
2... c5 {[%clk 0:02:55.4]} 3. e3 {[%clk 0:02:59.9]} 3... b6 {[%clk 0:02:54.3]}
4. Nf3 {[%clk 0:03:00]} 4... g6 {[%clk 0:02:52.4]} 5. Be2 {[%clk 0:03:00.1]}
5... Bg7 {[%clk 0:02:52.3]} 6. O-O {[%clk 0:03:00.7]} 6... O-O {[%clk
0:02:52.1]} 7. Nc3 {[%clk 0:03:01.2]} 7... e6 {[%clk 0:02:51.3]} 8. d5 {[%clk
0:02:58.3]} 8... d6 {[%clk 0:02:40.7]} 9. e4 {[%clk 0:02:53]} 9... e5 {[%clk
0:02:39.3]} 10. h3 {[%clk 0:02:52.8]} 10... Ne8 {[%clk 0:02:32.8]} 11. Bd2
{[%clk 0:02:31.9]} 11... f5 {[%clk 0:02:32.2]} 12. Ng5 {[%clk 0:02:26.5]} 12...
Nc7 {[%clk 0:02:14.7]} 13. exf5 {[%clk 0:02:06.4]} 13... gxf5 {[%clk 0:02:09.8]}
14. f4 {[%clk 0:02:02.9]} 14... e4 {[%clk 0:02:06.6]} 15. Kh1 {[%clk 0:01:49.5]}
15... h6 {[%clk 0:02:02.6]} 16. Ngxe4 {[%clk 0:01:49.8]} 16... fxe4 {[%clk
0:02:02.5]} 17. Nxe4 {[%clk 0:01:50.7]} 17... Bf5 {[%clk 0:01:58.2]} 18. Ng3
{[%clk 0:01:42.3]} 18... Nd7 {[%clk 0:01:47.1]} 19. Nxf5 {[%clk 0:01:38.6]}
19... Rxf5 {[%clk 0:01:48]} 20. Bd3 {[%clk 0:01:39.2]} 20... Rf8 {[%clk
0:01:40.7]} 21. Qh5 {[%clk 0:01:36.9]} 21... Nf6 {[%clk 0:01:22.1]} 22. Qh4
{[%clk 0:01:31.3]} 22... Ne4 {[%clk 0:01:09.2]} 23. Qe1 {[%clk 0:01:15.6]} 23...
Nxd2 {[%clk 0:01:06.1]} 24. Qxd2 {[%clk 0:01:16.5]} 24... Qh4 {[%clk 0:00:44]}
25. Bg6 {[%clk 0:01:10]} 25... Bd4 {[%clk 0:00:28.1]} 26. Rae1 {[%clk
0:01:02.6]} 26... Rf6 {[%clk 0:00:22.8]} 27. f5 {[%clk 0:01:00.4]} 27... Raf8
{[%clk 0:00:21.6]} 28. Qd3 {[%clk 0:00:53.1]} 28... b5 {[%clk 0:00:14.3]} 29. b3
{[%clk 0:00:52.3]} 29... bxc4 {[%clk 0:00:12.8]} 30. bxc4 {[%clk 0:00:53.2]}
30... Be5 {[%clk 0:00:08.4]} 31. Re4 {[%clk 0:00:28.3]} 31... Ne8 {[%clk
0:00:06.2]} 32. Rxh4 {[%clk 0:00:27]} 1-0

[Event "Late-Titled-Tuesday-Blitz-January-30-2024"]
[Site "Chess.com"]
[Date "2024.01.30"]
[Round "10"]
[White "ansko1999"]
[Black "jcibarra"]
[Result "0-1"]
[WhiteElo "2685"]
[BlackElo "2882"]
[TimeControl "180+1"]
[EndTime "15:54:21 PST"]
[Termination "jcibarra won on time"]

1. e4 {[%clk 0:02:58.9]} 1... c5 {[%clk 0:03:00.3]} 2. Nf3 {[%clk 0:02:58.8]}
2... e6 {[%clk 0:03:00.9]} 3. c3 {[%clk 0:02:57.6]} 3... Nf6 {[%clk 0:03:01]} 4.
e5 {[%clk 0:02:56.8]} 4... Nd5 {[%clk 0:03:01.6]} 5. d4 {[%clk 0:02:57.5]} 5...
cxd4 {[%clk 0:03:02.3]} 6. Qxd4 {[%clk 0:02:58]} 6... Nc6 {[%clk 0:03:02.1]} 7.
Qg4 {[%clk 0:02:58.4]} 7... f5 {[%clk 0:03:01.5]} 8. Qg3 {[%clk 0:02:58.6]} 8...
Qc7 {[%clk 0:02:54.6]} 9. Bb5 {[%clk 0:02:38.8]} 9... a6 {[%clk 0:02:47.7]} 10.
Bxc6 {[%clk 0:02:34.6]} 10... Qxc6 {[%clk 0:02:29.5]} 11. O-O {[%clk 0:02:33.4]}
11... b5 {[%clk 0:02:29.4]} 12. a4 {[%clk 0:02:15.2]} 12... b4 {[%clk
0:02:26.3]} 13. cxb4 {[%clk 0:01:51.3]} 13... Nxb4 {[%clk 0:02:20.9]} 14. b3
{[%clk 0:01:29.9]} 14... Bb7 {[%clk 0:02:13.1]} 15. Na3 {[%clk 0:01:27.3]} 15...
Bc5 {[%clk 0:01:59.5]} 16. Nc4 {[%clk 0:01:17.6]} 16... a5 {[%clk 0:01:38.9]}
17. Be3 {[%clk 0:01:01.5]} 17... O-O {[%clk 0:01:31.2]} 18. Bh6 {[%clk
0:00:41.4]} 18... Rf7 {[%clk 0:01:28]} 19. Nd6 {[%clk 0:00:40.7]} 19... Bxd6
{[%clk 0:00:45.8]} 20. exd6 {[%clk 0:00:41.6]} 20... Nd3 {[%clk 0:00:46.5]} 21.
Ng5 {[%clk 0:00:26.1]} 21... gxh6 {[%clk 0:00:38.4]} 22. Nxf7+ {[%clk
0:00:12.2]} 22... Kxf7 {[%clk 0:00:38.5]} 23. f3 {[%clk 0:00:09.9]} 23... Rg8
{[%clk 0:00:33.7]} 24. Qh3 {[%clk 0:00:09.8]} 24... Qc5+ {[%clk 0:00:26.2]} 25.
Kh1 {[%clk 0:00:09.7]} 25... Nf2+ {[%clk 0:00:26.5]} 26. Rxf2 {[%clk 0:00:09.7]}
26... Qxf2 {[%clk 0:00:27.4]} 27. Rg1 {[%clk 0:00:08.8]} 27... Rg6 {[%clk
0:00:27.4]} 28. Qh5 {[%clk 0:00:02.3]} 28... Bd5 {[%clk 0:00:27]} 29. b4 {[%clk
0:00:01.2]} 29... axb4 {[%clk 0:00:27.1]} 30. a5 {[%clk 0:00:02]} 30... b3
{[%clk 0:00:27.3]} 0-1

[Event "Late-Titled-Tuesday-Blitz-January-30-2024"]
[Site "Chess.com"]
[Date "2024.01.30"]
[Round "10"]
[White "alexrustemov"]
[Black "LittleChessFan"]
[Result "0-1"]
[WhiteElo "2720"]
[BlackElo "2332"]
[TimeControl "180+1"]
[EndTime "15:54:21 PST"]
[Termination "LittleChessFan won on time"]

1. d4 {[%clk 0:02:58.6]} 1... d5 {[%clk 0:02:57.3]} 2. c4 {[%clk 0:02:58.8]}
2... c6 {[%clk 0:02:57.3]} 3. Nc3 {[%clk 0:02:59.1]} 3... Nf6 {[%clk 0:02:55.4]}
4. e3 {[%clk 0:02:59.5]} 4... e6 {[%clk 0:02:50]} 5. Nf3 {[%clk 0:02:59.6]} 5...
Nbd7 {[%clk 0:02:50]} 6. Qc2 {[%clk 0:03:00.1]} 6... Bd6 {[%clk 0:02:49]} 7. b3
{[%clk 0:02:58.8]} 7... O-O {[%clk 0:02:37]} 8. Be2 {[%clk 0:02:59.1]} 8... Qc7
{[%clk 0:01:45.6]} 9. e4 {[%clk 0:02:51.9]} 9... dxe4 {[%clk 0:01:42.4]} 10.
Nxe4 {[%clk 0:02:50.6]} 10... Nxe4 {[%clk 0:01:42.4]} 11. Qxe4 {[%clk
0:02:51.1]} 11... Nf6 {[%clk 0:01:39.8]} 12. Qh4 {[%clk 0:02:48.4]} 12... Bb4+
{[%clk 0:01:35.2]} 13. Bd2 {[%clk 0:02:41.2]} 13... Bxd2+ {[%clk 0:01:34.6]} 14.
Nxd2 {[%clk 0:02:40.4]} 14... e5 {[%clk 0:01:31.3]} 15. O-O {[%clk 0:02:28]}
15... Rd8 {[%clk 0:01:25.2]} 16. Qg3 {[%clk 0:01:15.5]} 16... Rxd4 {[%clk
0:01:19.1]} 17. Nf3 {[%clk 0:01:15.3]} 17... Rg4 {[%clk 0:01:14.5]} 18. Qh3
{[%clk 0:00:53.7]} 18... Rf4 {[%clk 0:01:04.9]} 19. Qg3 {[%clk 0:00:49.8]} 19...
Ne4 {[%clk 0:01:04.5]} 20. Qxf4 {[%clk 0:00:34.4]} 20... exf4 {[%clk 0:01:04.2]}
21. Rfe1 {[%clk 0:00:34.9]} 21... Qb6 {[%clk 0:00:56.3]} 22. Rf1 {[%clk
0:00:30.4]} 22... Bg4 {[%clk 0:00:53.8]} 23. h3 {[%clk 0:00:30.1]} 23... Bxf3
{[%clk 0:00:52.5]} 24. Bxf3 {[%clk 0:00:31]} 24... Nd2 {[%clk 0:00:52.8]} 25.
Rfe1 {[%clk 0:00:30.4]} 25... Nxf3+ {[%clk 0:00:53]} 26. gxf3 {[%clk 0:00:31.3]}
26... Rd8 {[%clk 0:00:53.1]} 27. Re2 {[%clk 0:00:29.8]} 27... g6 {[%clk
0:00:51.2]} 28. Rae1 {[%clk 0:00:30.2]} 28... Rd7 {[%clk 0:00:48]} 29. Kg2
{[%clk 0:00:30.6]} 29... Kg7 {[%clk 0:00:48.1]} 30. Rc1 {[%clk 0:00:26.5]} 30...
Qd4 {[%clk 0:00:46.9]} 31. Rce1 {[%clk 0:00:23]} 31... Qc5 {[%clk 0:00:45.6]}
32. Re5 {[%clk 0:00:22.7]} 32... Qa3 {[%clk 0:00:44.6]} 33. R1e2 {[%clk
0:00:22.8]} 33... Qc1 {[%clk 0:00:42.7]} 34. R5e4 {[%clk 0:00:22.1]} 34... Rd1
{[%clk 0:00:41.8]} 0-1

[Event "Late-Titled-Tuesday-Blitz-January-30-2024"]
[Site "Chess.com"]
[Date "2024.01.30"]
[Round "10"]
[White "Slovineanu"]
[Black "Hirna2005"]
[Result "1-0"]
[WhiteElo "2446"]
[BlackElo "2288"]
[TimeControl "180+1"]
[EndTime "15:54:26 PST"]
[Termination "Slovineanu won by resignation"]

1. d4 {[%clk 0:02:58.6]} 1... g6 {[%clk 0:03:00.2]} 2. e4 {[%clk 0:02:57.4]}
2... Bg7 {[%clk 0:03:00.7]} 3. Nc3 {[%clk 0:02:57.7]} 3... d6 {[%clk 0:03:01.2]}
4. Be3 {[%clk 0:02:54.7]} 4... a6 {[%clk 0:03:00.7]} 5. Nf3 {[%clk 0:02:52.7]}
5... b5 {[%clk 0:03:00.5]} 6. h4 {[%clk 0:02:50]} 6... Nf6 {[%clk 0:02:58.7]} 7.
Bd3 {[%clk 0:02:42.6]} 7... Bg4 {[%clk 0:02:39.5]} 8. e5 {[%clk 0:02:29.2]} 8...
Nfd7 {[%clk 0:02:26.9]} 9. Be4 {[%clk 0:02:25.7]} 9... c6 {[%clk 0:02:26]} 10.
h5 {[%clk 0:02:04.6]} 10... dxe5 {[%clk 0:02:20.1]} 11. h6 {[%clk 0:01:46.3]}
11... Bf6 {[%clk 0:02:17.5]} 12. d5 {[%clk 0:01:19.5]} 12... Qc7 {[%clk
0:00:49.4]} 13. dxc6 {[%clk 0:01:19]} 13... Nxc6 {[%clk 0:00:47]} 14. Nd5 {[%clk
0:01:19]} 14... Qb7 {[%clk 0:00:39.4]} 15. Nb4 {[%clk 0:01:10.5]} 15... Ndb8
{[%clk 0:00:33.7]} 16. Qd5 {[%clk 0:01:05.8]} 16... Be6 {[%clk 0:00:31.7]} 17.
Qxc6+ {[%clk 0:01:04.8]} 17... Nxc6 {[%clk 0:00:30.9]} 18. Bxc6+ {[%clk
0:01:04.8]} 18... Qxc6 {[%clk 0:00:29.4]} 19. Nxc6 {[%clk 0:01:05.1]} 19... Rc8
{[%clk 0:00:26.1]} 20. Ncxe5 {[%clk 0:00:53.2]} 20... Rxc2 {[%clk 0:00:26]} 21.
O-O {[%clk 0:00:50.3]} 21... Rxb2 {[%clk 0:00:24]} 22. a4 {[%clk 0:00:49.6]}
22... b4 {[%clk 0:00:23.4]} 23. a5 {[%clk 0:00:47.2]} 23... O-O {[%clk
0:00:22.1]} 24. Rfb1 {[%clk 0:00:40.9]} 24... Rxb1+ {[%clk 0:00:18.2]} 25. Rxb1
{[%clk 0:00:41]} 25... Rb8 {[%clk 0:00:18.6]} 26. Bb6 {[%clk 0:00:37.5]} 26...
b3 {[%clk 0:00:18.9]} 27. Nc6 {[%clk 0:00:34.1]} 27... Rc8 {[%clk 0:00:18.1]}
28. Ncd4 {[%clk 0:00:31.9]} 28... Bd5 {[%clk 0:00:14.1]} 29. Nxb3 {[%clk
0:00:30.9]} 29... Bxf3 {[%clk 0:00:14.3]} 30. gxf3 {[%clk 0:00:30.8]} 30... Bg5
{[%clk 0:00:12.7]} 31. Nc5 {[%clk 0:00:30]} 31... Bxh6 {[%clk 0:00:10.8]} 32.
Nxa6 {[%clk 0:00:30.2]} 32... Rc2 {[%clk 0:00:08.1]} 33. Nb4 {[%clk 0:00:28.8]}
33... Re2 {[%clk 0:00:07]} 34. a6 {[%clk 0:00:27.8]} 1-0

[Event "Late-Titled-Tuesday-Blitz-January-30-2024"]
[Site "Chess.com"]
[Date "2024.01.30"]
[Round "10"]
[White "Smile2005"]
[Black "katharinareinecke"]
[Result "1-0"]
[WhiteElo "2395"]
[BlackElo "1972"]
[TimeControl "180+1"]
[EndTime "15:54:27 PST"]
[Termination "Smile2005 won by checkmate"]

1. e4 {[%clk 0:01:47.2]} 1... c6 {[%clk 0:02:57.6]} 2. Nf3 {[%clk 0:01:43.2]}
2... d5 {[%clk 0:02:57.1]} 3. d3 {[%clk 0:01:44.1]} 3... Bg4 {[%clk 0:02:51.7]}
4. h3 {[%clk 0:01:43]} 4... Bxf3 {[%clk 0:02:51]} 5. Qxf3 {[%clk 0:01:43.9]}
5... e6 {[%clk 0:02:46.3]} 6. g4 {[%clk 0:01:43.8]} 6... Nf6 {[%clk 0:02:41.5]}
7. Bg2 {[%clk 0:01:43.6]} 7... d4 {[%clk 0:02:38.8]} 8. O-O {[%clk 0:01:42.8]}
8... Be7 {[%clk 0:02:36.9]} 9. Qg3 {[%clk 0:01:42.6]} 9... Nfd7 {[%clk
0:02:31.7]} 10. f4 {[%clk 0:01:42.8]} 10... c5 {[%clk 0:02:30.6]} 11. f5 {[%clk
0:01:42.7]} 11... e5 {[%clk 0:02:26.6]} 12. g5 {[%clk 0:01:42.8]} 12... f6
{[%clk 0:02:20.1]} 13. g6 {[%clk 0:01:41.3]} 13... h6 {[%clk 0:02:15.8]} 14. Bf3
{[%clk 0:01:41.2]} 14... Nc6 {[%clk 0:02:14.1]} 15. Bh5 {[%clk 0:01:40.4]} 15...
Qc7 {[%clk 0:02:07.3]} 16. Nd2 {[%clk 0:01:39.9]} 16... O-O-O {[%clk 0:02:05.9]}
17. a3 {[%clk 0:01:39.6]} 17... b5 {[%clk 0:01:50.3]} 18. b3 {[%clk 0:01:39.4]}
18... Nb6 {[%clk 0:01:47]} 19. Be2 {[%clk 0:01:38.8]} 19... a5 {[%clk
0:01:40.1]} 20. h4 {[%clk 0:01:38.2]} 20... a4 {[%clk 0:01:37.7]} 21. h5 {[%clk
0:01:38.2]} 21... axb3 {[%clk 0:01:32.9]} 22. cxb3 {[%clk 0:01:38.4]} 22... b4
{[%clk 0:01:19.1]} 23. axb4 {[%clk 0:01:36.9]} 23... Nxb4 {[%clk 0:01:17.1]} 24.
Nc4 {[%clk 0:01:31.6]} 24... Nxc4 {[%clk 0:01:13.5]} 25. bxc4 {[%clk 0:01:32.5]}
25... Nc2 {[%clk 0:01:09.6]} 26. Rb1 {[%clk 0:01:30.8]} 26... Nb4 {[%clk
0:01:05.6]} 27. Bd2 {[%clk 0:01:30.4]} 27... Kd7 {[%clk 0:01:04.3]} 28. Bd1
{[%clk 0:01:23.4]} 28... Rb8 {[%clk 0:00:55.2]} 29. Ba4+ {[%clk 0:01:22.8]}
29... Nc6 {[%clk 0:00:39.6]} 30. Rb5 {[%clk 0:01:19.4]} 30... Rb6 {[%clk
0:00:29.7]} 31. Rfb1 {[%clk 0:01:18.3]} 31... Rhb8 {[%clk 0:00:26.8]} 32. Qe1
{[%clk 0:01:11.4]} 32... Qb7 {[%clk 0:00:16.4]} 33. Rxb6 {[%clk 0:01:05.5]}
33... Qxb6 {[%clk 0:00:13.9]} 34. Rxb6 {[%clk 0:01:05.2]} 34... Rxb6 {[%clk
0:00:14.4]} 35. Bb5 {[%clk 0:01:05.5]} 35... Bd8 {[%clk 0:00:11]} 36. Qa1 {[%clk
0:01:05]} 36... Bc7 {[%clk 0:00:09.4]} 37. Ba5 {[%clk 0:01:04.7]} 37... Rb7
{[%clk 0:00:08]} 38. Bxc7 {[%clk 0:01:04.5]} 38... Kxc7 {[%clk 0:00:07.8]} 39.
Qa6 {[%clk 0:01:01.8]} 39... Nb4 {[%clk 0:00:05.9]} 40. Qa5+ {[%clk 0:00:58.3]}
40... Kd6 {[%clk 0:00:02.8]} 41. Qd8+ {[%clk 0:00:57.7]} 41... Rd7 {[%clk
0:00:01.5]} 42. Qxd7# {[%clk 0:00:57.9]} 1-0

[Event "Late-Titled-Tuesday-Blitz-January-30-2024"]
[Site "Chess.com"]
[Date "2024.01.30"]
[Round "10"]
[White "RaulPerezGuerra"]
[Black "StellarChess"]
[Result "0-1"]
[WhiteElo "2439"]
[BlackElo "2546"]
[TimeControl "180+1"]
[EndTime "15:54:28 PST"]
[Termination "StellarChess won by resignation"]

1. b3 {[%clk 0:03:00.9]} 1... b6 {[%clk 0:02:59.1]} 2. Bb2 {[%clk 0:03:00.9]}
2... Bb7 {[%clk 0:02:59.8]} 3. Nf3 {[%clk 0:03:01.5]} 3... Nf6 {[%clk
0:03:00.5]} 4. d3 {[%clk 0:03:01.1]} 4... g6 {[%clk 0:03:00.9]} 5. Nbd2 {[%clk
0:03:00.3]} 5... Bg7 {[%clk 0:03:01.4]} 6. e4 {[%clk 0:02:59.8]} 6... d6 {[%clk
0:03:01.2]} 7. Be2 {[%clk 0:02:59.1]} 7... e5 {[%clk 0:03:01.3]} 8. O-O {[%clk
0:02:56.2]} 8... O-O {[%clk 0:03:02.2]} 9. Re1 {[%clk 0:02:52.1]} 9... Nbd7
{[%clk 0:03:00.6]} 10. Bf1 {[%clk 0:02:51.2]} 10... Re8 {[%clk 0:03:00]} 11. Nc4
{[%clk 0:02:48.9]} 11... a5 {[%clk 0:02:57]} 12. a4 {[%clk 0:02:48]} 12... Nc5
{[%clk 0:02:56.4]} 13. h3 {[%clk 0:02:40]} 13... Ne6 {[%clk 0:02:56.7]} 14. g3
{[%clk 0:02:28.9]} 14... Nh5 {[%clk 0:02:51.7]} 15. Bg2 {[%clk 0:02:26.5]} 15...
Rf8 {[%clk 0:02:44.7]} 16. d4 {[%clk 0:02:15.4]} 16... exd4 {[%clk 0:02:44.5]}
17. Nxd4 {[%clk 0:02:15.4]} 17... Nxd4 {[%clk 0:02:44.3]} 18. Bxd4 {[%clk
0:02:14.4]} 18... Rb8 {[%clk 0:02:35.2]} 19. Bxg7 {[%clk 0:02:13.3]} 19... Kxg7
{[%clk 0:02:35.5]} 20. Ne3 {[%clk 0:02:11.5]} 20... Re8 {[%clk 0:02:32]} 21. Ng4
{[%clk 0:02:05.2]} 21... Nf6 {[%clk 0:02:24.8]} 22. Qd4 {[%clk 0:02:03.3]} 22...
h5 {[%clk 0:02:24.3]} 23. Nxf6 {[%clk 0:01:39.2]} 23... Qxf6 {[%clk 0:02:24.3]}
24. Rad1 {[%clk 0:01:38.3]} 24... Qxd4 {[%clk 0:02:22.8]} 25. Rxd4 {[%clk
0:01:39.2]} 25... d5 {[%clk 0:02:08.9]} 26. e5 {[%clk 0:01:34.7]} 26... c5
{[%clk 0:02:06.3]} 27. Rd2 {[%clk 0:01:32.8]} 27... d4 {[%clk 0:02:06.1]} 28. f4
{[%clk 0:01:31.3]} 28... Bxg2 {[%clk 0:02:03.3]} 29. Kxg2 {[%clk 0:01:32.2]}
29... f6 {[%clk 0:02:03.6]} 30. Rde2 {[%clk 0:01:29.6]} 30... f5 {[%clk
0:01:56.9]} 31. e6 {[%clk 0:01:14.9]} 31... Re7 {[%clk 0:01:52.9]} 32. Kf3
{[%clk 0:00:52]} 32... Kf6 {[%clk 0:01:51.9]} 33. g4 {[%clk 0:00:52.9]} 33...
hxg4+ {[%clk 0:01:44.8]} 34. hxg4 {[%clk 0:00:53.8]} 34... fxg4+ {[%clk
0:01:44]} 35. Kxg4 {[%clk 0:00:54.7]} 35... Rbe8 {[%clk 0:01:44.2]} 36. Rh1
{[%clk 0:00:22.3]} 36... Rxe6 {[%clk 0:01:42.6]} 37. Rxe6+ {[%clk 0:00:23.2]}
37... Rxe6 {[%clk 0:01:43.3]} 38. Rh8 {[%clk 0:00:22.6]} 38... Ke7 {[%clk
0:01:33.2]} 39. Rb8 {[%clk 0:00:22.6]} 39... Kd7 {[%clk 0:01:32.7]} 40. Kf3
{[%clk 0:00:21.6]} 40... Kc7 {[%clk 0:01:28.8]} 41. Rg8 {[%clk 0:00:20.4]} 41...
Re3+ {[%clk 0:01:21.9]} 42. Kf2 {[%clk 0:00:20.5]} 42... Rc3 {[%clk 0:01:22.5]}
43. Rg7+ {[%clk 0:00:19]} 43... Kc8 {[%clk 0:01:18.6]} 44. Rxg6 {[%clk 0:00:19]}
44... Rxc2+ {[%clk 0:01:19.3]} 45. Kf3 {[%clk 0:00:18.7]} 45... Rc3+ {[%clk
0:01:19.4]} 46. Kf2 {[%clk 0:00:17.7]} 46... Rxb3 {[%clk 0:01:19.6]} 47. Re6
{[%clk 0:00:16]} 47... Kd7 {[%clk 0:01:19.3]} 48. Re1 {[%clk 0:00:15.3]} 48...
c4 {[%clk 0:01:16.5]} 49. Re4 {[%clk 0:00:14.8]} 49... Rd3 {[%clk 0:01:11.6]}
50. f5 {[%clk 0:00:12.4]} 50... c3 {[%clk 0:01:12.2]} 51. Re1 {[%clk 0:00:09.3]}
51... c2 {[%clk 0:01:09.3]} 52. Rc1 {[%clk 0:00:09.6]} 52... Rc3 {[%clk
0:01:09.3]} 53. Ke2 {[%clk 0:00:10.1]} 53... Ke7 {[%clk 0:01:08.9]} 54. Kd2
{[%clk 0:00:08.8]} 54... Kf6 {[%clk 0:01:07.1]} 55. Rxc2 {[%clk 0:00:07]} 55...
Rxc2+ {[%clk 0:01:08]} 56. Kxc2 {[%clk 0:00:07.5]} 56... Kxf5 {[%clk 0:01:08.9]}
57. Kd3 {[%clk 0:00:08.4]} 57... Ke5 {[%clk 0:01:09.4]} 0-1